fUSD/lending_fUSD_20250106
["ID","MTS","AMOUNT","RATE_DAILY","PERIOD"]
[347859501,1736165432670,-500.0,0.00010026,2]
[347859503,1736165432679,-408.15113885,0.00010026,2]
[347859505,1736165432689,-578.69566429,0.00010026,2]
[347859507,1736165432699,-500.0,0.00010026,2]
[347859509,1736165432708,-500.0,0.00010026,2]
[347859510,1736165432718,-500.0,0.00010026,2]
[347859512,1736165432727,-500.0,0.00010026,2]
[347859513,1736165432736,-500.0,0.00010026,2]
[347859514,1736165432745,-500.0,0.00010026,2]
[347859515,1736165432754,-500.0,0.00010026,2]
[347859516,1736165432763,-500.0,0.00010026,2]
[347859517,1736165432773,-500.0,0.00010026,2]
[347859518,1736165432782,-1486.34,0.00010026,2]
[347859519,1736165432792,-1690.93,0.00010026,2]
[347859520,1736165432802,-897.81,0.00010026,2]
[347859521,1736165432811,-500.0,0.00010026,2]
[347859522,1736165432820,-1769.1,0.00010026,2]
[347859523,1736165432829,-500.0,0.00010026,2]
[347859524,1736165432839,-500.0,0.00010026,2]
[347859525,1736165432848,-500.0,0.00010026,2]
[347859526,1736165432858,-330.44,0.00010026,2]
[347859527,1736165432867,-500.0,0.00010026,2]
[347859528,1736165432876,-882.86,0.00010026,2]
[347859529,1736165432886,-500.0,0.00010026,2]
[347859530,1736165432895,-923.51,0.00010026,2]
[347859531,1736165432904,-500.0,0.00010026,2]
[347859532,1736165432914,-500.0,0.00010026,2]
[347859533,1736165432923,-500.0,0.00010026,2]
[347859534,1736165432934,-500.0,0.00010026,2]
[347859535,1736165432943,-1119.57,0.00010026,2]
[347859536,1736165432953,-137209.72487779,0.00010027,2]
[347859537,1736165432965,-261.8541,0.00010027,2]
[347859539,1736165437897,-500.0,0.00010026,2]
[347859540,1736165437907,-4157.62,0.00010026,2]
[347859541,1736165437916,-580.57313775,0.00010027,2]
[347859542,1736165438054,-18584.644,0.00010027,2]
[347859543,1736165438107,-1815794.21388446,0.00010027,2]
[347859544,1736165438117,-150.79782697,0.00010073,2]
[347859545,1736165438126,-151.79224632,0.00010073,2]
[347859546,1736165438136,-151.79380715,0.00010073,2]
[347859547,1736165438146,-151.7922475,0.00010073,2]
[347859548,1736165438156,-151.79224632,0.00010073,2]
[347859549,1736165438166,-160.27206474,0.00010073,2]
[347859550,1736165438175,-500.0,0.00010073,2]
[347859551,1736165438185,-154.1,0.00010137,2]
[347859552,1736165438195,-375.0,0.000102,5]
[347859553,1736165438204,-500.0,0.000103,2]
[347859554,1736165438214,-1486.34,0.000103,2]
[347859556,1736165438223,-1690.93,0.000103,2]
[347859558,1736165438233,-897.81,0.000103,2]
[347859560,1736165438242,-500.0,0.000103,2]
[347859562,1736165438252,-1769.1,0.000103,2]
[347859564,1736165438261,-500.0,0.000103,2]
[347859566,1736165438270,-500.0,0.000103,2]
[347859568,1736165438280,-500.0,0.000103,2]
[347859570,1736165438289,-882.86,0.000103,2]
[347859572,1736165438298,-500.0,0.000103,2]
[347859574,1736165438309,-923.51,0.000103,2]
[347859576,1736165438318,-231.98464702,0.000103,2]
[347859578,1736165438327,-500.0,0.000103,2]
[347859580,1736165438337,-500.0,0.000103,2]
[347859582,1736165438346,-500.0,0.000103,2]
[347859584,1736165438355,-1119.57,0.000103,2]
[347859586,1736165438365,-500.0,0.000103,2]
[347859588,1736165438374,-4157.62,0.000103,2]
[347859590,1736165438382,-5100.0,0.000104,3]
[347859592,1736165438392,-191.5401,0.00010447,2]
[347859594,1736165438401,-566.29,0.0001045,2]
[347859596,1736165438411,-506.96,0.00010456,2]
[347859598,1736165438420,-6300.0,0.000105,3]
[347859600,1736165438431,-1483.6,0.00010527,2]
[347859602,1736165438440,-343.57080778,0.00010574,2]
[347859604,1736165438450,-1486.34,0.00010574,2]
[347859606,1736165438459,-1690.93,0.00010574,2]
[347859608,1736165438470,-897.81,0.00010574,2]
[347859609,1736165438479,-500.0,0.00010574,2]
[347859611,1736165438489,-1769.1,0.00010574,2]
[347859613,1736165438499,-500.0,0.00010574,2]
[347859615,1736165438508,-500.0,0.00010574,2]
[347859617,1736165438517,-500.0,0.00010574,2]
[347859619,1736165438526,-882.86,0.00010574,2]
[347859621,1736165438536,-500.0,0.00010574,2]
[347859623,1736165438545,-923.51,0.00010574,2]
[347859625,1736165438554,-500.0,0.00010574,2]
[347859627,1736165438563,-500.0,0.00010574,2]
[347859628,1736165438572,-500.0,0.00010574,2]
[347859629,1736165438581,-1119.57,0.00010574,2]
[347859630,1736165438590,-500.0,0.00010574,2]
[347859631,1736165438599,-4157.62,0.00010574,2]
[347859632,1736165438609,-1472.1,0.00010598,2]
[347859633,1736165438618,-500.0,0.00010598,2]
[347859634,1736165438628,-500.0,0.00010598,2]
[347859635,1736165438637,-500.0,0.00010598,2]
[347859636,1736165438646,-510.38,0.00010598,2]
[347859637,1736165438655,-500.0,0.00010598,2]
[347859638,1736165438664,-500.0,0.00010598,2]
[347859639,1736165438674,-500.0,0.00010598,2]
[347859640,1736165438684,-500.0,0.00010598,2]
[347859641,1736165438693,-635.39,0.00010598,2]
[347859642,1736165438703,-500.0,0.00010598,2]
[347859643,1736165438712,-500.0,0.00010598,2]
[347859644,1736165438721,-546.76,0.00010598,2]
[347859645,1736165438730,-637.7,0.00010598,2]
[347859646,1736165438739,-1274.36,0.00010598,2]
[347859647,1736165438749,-500.0,0.00010598,2]
[347859648,1736165438759,-4502.66,0.00010598,2]
[347859649,1736165438768,-500.0,0.00010598,2]
[347859650,1736165438778,-4084.02,0.00010598,2]
[347859651,1736165438787,-500.0,0.00010598,2]
[347859652,1736165438796,-500.0,0.00010598,2]
[347859653,1736165438806,-500.0,0.00010598,2]
[347859654,1736165438815,-500.0,0.00010598,2]
[347859655,1736165438824,-500.0,0.00010598,2]
[347859656,1736165438833,-500.0,0.00010598,2]
[347859657,1736165438843,-500.0,0.00010598,2]
[347859658,1736165438851,-1899.41,0.00010598,2]
[347859659,1736165438861,-500.0,0.00010598,2]
[347859660,1736165438870,-650.75,0.00010598,2]
[347859661,1736165438879,-500.0,0.00010598,2]
[347859662,1736165438888,-500.0,0.00010598,2]
[347859663,1736165438897,-500.0,0.00010598,2]
[347859664,1736165438906,-541.93,0.00010598,2]
[347859665,1736165438915,-500.0,0.00010598,2]
[347859666,1736165438924,-500.0,0.00010598,2]
[347859667,1736165438934,-3620.4,0.00010598,2]
[347859668,1736165438943,-500.0,0.00010598,2]
[347859669,1736165438952,-500.0,0.00010598,2]
[347859670,1736165438961,-500.0,0.00010598,2]
[347859671,1736165438971,-500.0,0.00010598,2]
[347859672,1736165438980,-1834.48,0.00010598,2]
[347859673,1736165438989,-849.4,0.00010598,2]
[347859674,1736165438998,-1251.15,0.00010598,2]
[347859675,1736165439008,-1483.13,0.00010598,2]
[347859676,1736165439017,-28733.55,0.00010599,2]
[347859677,1736165439027,-1323.64,0.00010599,2]
[347859678,1736165439036,-2225.17,0.00010599,2]
[347859679,1736165439047,-1276.56,0.00010599,2]
[347859680,1736165439056,-3458.97,0.00010599,2]
[347859681,1736165439065,-1536.7,0.00010599,2]
[347859682,1736165439074,-1970.2,0.00010599,2]
[347859683,1736165439083,-1217.15,0.00010599,2]
[347859684,1736165439093,-855.46,0.00010599,2]
[347859685,1736165439102,-1200.0,0.000106,3]
[347859686,1736165439111,-1000.0,0.00010621,2]
[347859687,1736165439121,-1540.374,0.00010698,2]
[347859688,1736165439130,-1200.0,0.000107,3]
[347859689,1736165439139,-1000.0,0.000107,2]
[347859690,1736165439148,-3055.2678,0.00010772,2]
[347859691,1736165439158,-410.452858,0.0001078,2]
[347859692,1736165439167,-500.0,0.00010798,2]
[347859693,1736165439176,-500.0,0.00010798,2]
[347859694,1736165439185,-500.0,0.00010798,2]
[347859695,1736165439195,-500.0,0.00010798,2]
[347859696,1736165439204,-500.0,0.00010798,2]
[347859697,1736165439214,-500.0,0.00010798,2]
[347859698,1736165439223,-716.34,0.00010798,2]
[347859699,1736165439232,-500.0,0.00010798,2]
[347859700,1736165439241,-352.56446804,0.00010798,2]
[347859701,1736165439251,-500.0,0.00010798,2]
[347859702,1736165439261,-1473.94,0.00010799,2]
[347859703,1736165439270,-500.0,0.00010799,2]
[347859704,1736165439279,-155.76501918,0.000108,2]
[347859705,1736165439288,-873.58,0.000108,2]
[347859706,1736165439298,-150.0,0.000108,2]
[347859707,1736165439308,-763.74,0.000108,2]
[347859708,1736165439317,-87497.55771758,0.000108,2]
[347859709,1736165439326,-5000.0,0.000108,2]
[347859710,1736165439335,-1200.0,0.000108,3]
[347859711,1736165439344,-1000.0,0.000108,2]
[347859712,1736165439354,-500.0,0.00010801,2]
[347859713,1736165439363,-2600.31,0.00010801,2]
[347859714,1736165439372,-500.0,0.00010801,2]
[347859715,1736165439382,-500.0,0.00010801,2]
[347859716,1736165439391,-874.07,0.00010801,2]
[347859717,1736165439401,-843.85,0.00010801,2]
[347859718,1736165439411,-620.27,0.00010801,2]
[347859719,1736165439422,-1000.0,0.00010801,2]
[347859720,1736165439438,-508.37,0.00010801,2]
[347859721,1736165439447,-500.0,0.00010801,2]
[347859722,1736165439457,-1524.09,0.00010801,2]
[347859723,1736165439468,-1350.38,0.00010801,2]
[347859724,1736165439478,-157.03311115,0.0001082,2]
[347859725,1736165439487,-500.0,0.0001082,2]
[347859726,1736165439496,-1415.31,0.0001082,2]
[347859727,1736165439507,-2521.75,0.0001082,2]
[347859728,1736165439517,-1340.42,0.0001082,2]
[347859729,1736165439527,-830.93,0.0001082,2]
[347859730,1736165439536,-510.19,0.0001082,2]
[347859731,1736165439545,-500.0,0.0001082,2]
[347859732,1736165439554,-825.11,0.0001082,2]
[347859733,1736165439564,-500.0,0.0001082,2]
[347859734,1736165439573,-500.0,0.0001082,2]
[347859735,1736165439583,-500.0,0.0001082,2]
[347859736,1736165439593,-532.58,0.0001082,2]
[347859737,1736165439604,-1566.01,0.0001082,2]
[347859738,1736165439614,-1450.26,0.0001082,2]
[347859739,1736165439623,-2325.27,0.0001082,2]
[347859740,1736165439632,-6717.97,0.0001082,2]
[347859741,1736165439642,-500.0,0.0001082,2]
[347859742,1736165439651,-1486.34,0.00010848,2]
[347859743,1736165439660,-1690.93,0.00010848,2]
[347859744,1736165439669,-897.81,0.00010848,2]
[347859745,1736165439678,-500.0,0.00010848,2]
[347859746,1736165439689,-1769.1,0.00010848,2]
[347859747,1736165439698,-500.0,0.00010848,2]
[347859748,1736165439707,-500.0,0.00010848,2]
[347859749,1736165439717,-500.0,0.00010848,2]
[347859750,1736165439726,-882.86,0.00010848,2]
[347859751,1736165439736,-500.0,0.00010848,2]
[347859752,1736165439746,-923.51,0.00010848,2]
[347859753,1736165439756,-500.0,0.00010848,2]
[347859754,1736165439765,-500.0,0.00010848,2]
[347859755,1736165439775,-500.0,0.00010848,2]
[347859756,1736165439784,-1119.57,0.00010848,2]
[347859757,1736165439793,-500.0,0.00010848,2]
[347859758,1736165439803,-500.0,0.0001087,2]
[347859759,1736165439813,-500.0,0.0001087,2]
[347859760,1736165439823,-500.0,0.0001087,2]
[347859761,1736165439832,-820.03,0.0001087,2]
[347859762,1736165439841,-500.0,0.0001087,2]
[347859763,1736165439851,-500.0,0.0001087,2]
[347859764,1736165439860,-932.73,0.0001087,2]
[347859765,1736165439869,-1464.31,0.0001087,2]
[347859766,1736165439879,-500.0,0.0001087,2]
[347859767,1736165439888,-575.47,0.0001087,2]
[347859768,1736165439897,-500.0,0.0001087,2]
[347859769,1736165439907,-1464.52,0.0001087,2]
[347859770,1736165439916,-700.41,0.0001087,2]
[347859771,1736165439925,-500.0,0.0001087,2]
[347859772,1736165439934,-2218.24,0.0001087,2]
[347859773,1736165439943,-1398.047305,0.0001087,2]
[347859774,1736165439952,-157.8651,0.0001087,2]
[347859775,1736165439961,-673.76,0.0001087,2]
[347859776,1736165439972,-156.313771,0.0001087,2]
[347859777,1736165439981,-587.99,0.0001087,2]
[347859778,1736165439990,-500.0,0.0001087,2]
[347859779,1736165440001,-1496.051055,0.0001087,2]
[347859780,1736165440011,-1109.46,0.0001087,2]
[347859781,1736165440020,-1033.13,0.0001087,2]
[347859782,1736165440221,-2782.31,0.0001087,2]
[347859783,1736165440242,-500.0,0.0001087,2]
[347859784,1736165440252,-500.0,0.0001087,2]
[347859785,1736165440262,-500.0,0.0001087,2]
[347859786,1736165440273,-500.0,0.0001087,2]
[347859787,1736165440282,-1813.49,0.0001087,2]
[347859788,1736165440291,-500.0,0.00010871,2]
[347859789,1736165440301,-500.0,0.00010871,2]
[347859790,1736165440311,-500.0,0.00010871,2]
[347859791,1736165440321,-500.0,0.00010871,2]
[347859792,1736165440331,-500.0,0.00010871,2]
[347859793,1736165440340,-500.0,0.00010871,2]
[347859794,1736165440349,-500.0,0.00010871,2]
[347859795,1736165440358,-500.0,0.00010871,2]
[347859796,1736165440368,-500.0,0.00010871,2]
[347859797,1736165440378,-495.95,0.00010871,2]
[347859798,1736165440388,-500.0,0.00010871,2]
[347859799,1736165440397,-500.0,0.00010871,2]
[347859800,1736165440407,-545.45,0.00010871,2]
[347859801,1736165440416,-500.0,0.00010871,2]
[347859802,1736165440429,-500.0,0.00010871,2]
[347859803,1736165440440,-2906.03,0.00010871,2]
[347859804,1736165440450,-500.0,0.00010871,2]
[347859805,1736165440460,-500.0,0.00010871,2]
[347859806,1736165440470,-500.0,0.00010871,2]
[347859807,1736165440479,-500.0,0.00010871,2]
[347859808,1736165440488,-500.0,0.00010871,2]
[347859809,1736165440499,-500.0,0.00010871,2]
[347859810,1736165440508,-496.64,0.00010871,2]
[347859811,1736165440517,-500.0,0.00010871,2]
[347859813,1736165440526,-500.0,0.00010871,2]
[347859814,1736165440535,-500.0,0.00010871,2]
[347859816,1736165440544,-500.0,0.00010871,2]
[347859818,1736165440554,-500.0,0.00010871,2]
[347859820,1736165440563,-500.0,0.00010871,2]
[347859822,1736165440572,-500.0,0.00010871,2]
[347859824,1736165440582,-500.0,0.00010871,2]
[347859826,1736165440591,-500.0,0.00010871,2]
[347859828,1736165440600,-500.0,0.00010871,2]
[347859830,1736165440609,-500.0,0.00010871,2]
[347859832,1736165440618,-500.0,0.00010871,2]
[347859834,1736165440628,-500.0,0.00010871,2]
[347859836,1736165440637,-500.91028072,0.00010871,2]
[347859838,1736165440646,-500.0,0.00010871,2]
[347859840,1736165440655,-500.0,0.00010871,2]
[347859842,1736165440664,-500.0,0.00010871,2]
[347859844,1736165440674,-500.0,0.00010871,2]
[347859846,1736165440682,-500.0,0.00010871,2]
[347859848,1736165440696,-500.0,0.00010871,2]
[347859850,1736165440705,-500.0,0.00010871,2]
[347859852,1736165440715,-500.0,0.00010871,2]
[347859854,1736165440724,-500.0,0.00010871,2]
[347859856,1736165440733,-500.0,0.00010871,2]
[347859858,1736165440742,-500.0,0.00010871,2]
[347859860,1736165440751,-428.22431064,0.00010871,2]
[347859862,1736165440760,-500.0,0.00010871,2]
[347859864,1736165440770,-500.0,0.00010871,2]
[347859866,1736165440780,-500.0,0.00010871,2]
[347859868,1736165440789,-500.0,0.00010871,2]
[347859870,1736165440799,-500.0,0.00010871,2]
[347859872,1736165440808,-500.0,0.00010871,2]
[347859874,1736165440817,-500.93715457,0.00010871,2]
[347859876,1736165440827,-500.0,0.00010871,2]
[347859878,1736165440836,-584.15,0.00010871,2]
[347859880,1736165440845,-501.06022197,0.00010871,2]
[347859882,1736165440855,-500.0,0.00010871,2]
[347859884,1736165440864,-502.07028179,0.00010871,2]
[347859886,1736165440873,-500.0,0.00010871,2]
[347859888,1736165440882,-500.0,0.00010871,2]
[347859890,1736165440891,-500.37600263,0.00010871,2]
[347859892,1736165440901,-500.0,0.00010871,2]
[347859894,1736165440910,-569.41511847,0.00010871,2]
[347859896,1736165440919,-500.0,0.00010871,2]
[347859898,1736165440928,-500.0,0.00010871,2]
[347859900,1736165440939,-500.0,0.00010871,2]
[347859902,1736165440948,-500.0,0.00010871,2]
[347859904,1736165440957,-501.37751107,0.00010871,2]
[347859906,1736165440966,-496.74119348,0.00010871,2]
[347859908,1736165440975,-500.99204811,0.00010871,2]
[347859910,1736165440984,-525.46,0.00010871,2]
[347859912,1736165440994,-500.0,0.00010871,2]
[347859914,1736165441004,-500.0,0.00010871,2]
[347859916,1736165441013,-502.80202421,0.00010871,2]
[347859918,1736165441022,-500.0,0.00010871,2]
[347859920,1736165441031,-500.0,0.00010871,2]
[347859922,1736165441040,-500.0,0.00010871,2]
[347859924,1736165441049,-500.0,0.00010871,2]
[347859925,1736165441059,-500.0,0.00010871,2]
[347859927,1736165441068,-500.0,0.00010871,2]
[347859929,1736165441078,-500.81245417,0.00010871,2]
[347859930,1736165441088,-501.42901297,0.00010871,2]
[347859931,1736165441097,-500.0,0.00010871,2]
[347859932,1736165441106,-500.0,0.00010871,2]
[347859933,1736165441116,-500.0,0.00010871,2]
[347859934,1736165441125,-501.49305795,0.00010871,2]
[347859935,1736165441135,-501.38911777,0.00010871,2]
[347859936,1736165441144,-500.0,0.00010871,2]
[347859937,1736165441154,-500.0,0.00010871,2]
[347859938,1736165441163,-502.20081016,0.00010871,2]
[347859939,1736165441172,-346.36090801,0.00010871,2]
[347859940,1736165441182,-589.53914236,0.00010871,2]
[347859941,1736165441193,-500.89569115,0.00010871,2]
[347859942,1736165441204,-501.37987764,0.00010871,2]
[347859943,1736165441213,-500.0,0.00010871,2]
[347859944,1736165441223,-500.0,0.00010871,2]
[347859945,1736165441232,-500.0,0.00010871,2]
[347859946,1736165441242,-223.88,0.00010871,2]
[347859947,1736165441251,-502.58721747,0.00010871,2]
[347859948,1736165441260,-500.0,0.00010871,2]
[347859949,1736165441270,-500.0,0.00010871,2]
[347859950,1736165441279,-500.0,0.00010871,2]
[347859951,1736165441289,-500.0,0.00010871,2]
[347859952,1736165441298,-500.0,0.00010871,2]
[347859953,1736165441308,-500.0,0.00010871,2]
[347859954,1736165441317,-500.0,0.00010871,2]
[347859955,1736165441326,-500.0,0.00010871,2]
[347859956,1736165441336,-619.88,0.00010871,2]
[347859957,1736165441345,-501.33172603,0.00010871,2]
[347859958,1736165441355,-506.67691989,0.00010871,2]
[347859959,1736165441366,-501.63872328,0.00010871,2]
[347859960,1736165441375,-500.0,0.00010871,2]
[347859961,1736165441384,-501.11955231,0.00010871,2]
[347859962,1736165441394,-500.0,0.00010871,2]
[347859963,1736165441403,-500.0,0.00010871,2]
[347859964,1736165441413,-500.0,0.00010871,2]
[347859965,1736165441424,-500.0,0.00010871,2]
[347859966,1736165441435,-501.32859064,0.00010871,2]
[347859967,1736165441445,-501.2773116,0.00010871,2]
[347859968,1736165441454,-500.0,0.00010871,2]
[347859969,1736165441464,-500.0,0.00010871,2]
[347859970,1736165441474,-500.51172738,0.00010871,2]
[347859971,1736165441484,-500.0,0.00010871,2]
[347859972,1736165441493,-500.0,0.00010871,2]
[347859973,1736165441503,-500.0,0.00010871,2]
[347859974,1736165441513,-500.0,0.00010871,2]
[347859975,1736165441523,-500.0,0.00010871,2]
[347859976,1736165441532,-502.69811503,0.00010871,2]
[347859977,1736165441541,-500.0,0.00010871,2]
[347859978,1736165441550,-500.0,0.00010871,2]
[347859979,1736165441559,-336.78,0.00010871,2]
[347859980,1736165441569,-501.00282612,0.00010871,2]
[347859981,1736165441578,-500.0,0.00010871,2]
[347859982,1736165441588,-500.35373502,0.00010871,2]
[347859983,1736165441597,-500.0,0.00010871,2]
[347859984,1736165441606,-500.0,0.00010871,2]
[347859985,1736165441616,-500.0,0.00010871,2]
[347859986,1736165441625,-500.0,0.00010871,2]
[347859987,1736165441635,-502.05273493,0.00010871,2]
[347859988,1736165441644,-500.0,0.00010871,2]
[347859989,1736165441653,-508.36521756,0.00010871,2]
[347859990,1736165441662,-501.46697405,0.00010871,2]
[347859991,1736165441671,-500.0,0.00010871,2]
[347859992,1736165441680,-2658.67,0.00010871,2]
[347859993,1736165441691,-504.88549916,0.00010871,2]
[347859994,1736165441700,-500.0,0.00010871,2]
[347859995,1736165441709,-500.0,0.00010871,2]
[347859996,1736165441719,-1555.39,0.00010871,2]
[347859997,1736165441728,-500.0,0.00010871,2]
[347859998,1736165441737,-500.0,0.00010871,2]
[347859999,1736165441747,-500.0,0.00010871,2]
[347860000,1736165441756,-500.0,0.00010871,2]
[347860001,1736165441766,-500.0,0.00010871,2]
[347860002,1736165441776,-2549.49,0.00010871,2]
[347860003,1736165441786,-500.0,0.00010871,2]
[347860004,1736165441796,-500.0,0.00010871,2]
[347860005,1736165441806,-2423.11,0.00010871,2]
[347860006,1736165441815,-500.0,0.00010871,2]
[347860007,1736165441825,-500.0,0.00010871,2]
[347860008,1736165441835,-500.0,0.00010871,2]
[347860009,1736165441844,-500.0,0.00010871,2]
[347860010,1736165441854,-500.0,0.00010871,2]
[347860011,1736165441864,-500.0,0.00010871,2]
[347860012,1736165441874,-500.0,0.00010871,2]
[347860013,1736165441883,-505.94721401,0.00010871,2]
[347860014,1736165441892,-500.0,0.00010871,2]
[347860015,1736165441902,-3076.28,0.00010871,2]
[347860016,1736165441912,-500.0,0.00010871,2]
[347860017,1736165441922,-500.0,0.00010871,2]
[347860018,1736165441931,-500.0,0.00010871,2]
[347860019,1736165441942,-500.0,0.00010871,2]
[347860020,1736165441951,-500.0,0.00010871,2]
[347860021,1736165441961,-500.0,0.00010871,2]
[347860022,1736165441970,-500.0,0.00010871,2]
[347860023,1736165441980,-500.0,0.00010871,2]
[347860024,1736165441990,-500.0,0.00010871,2]
[347860025,1736165441999,-339.02147947,0.00010871,2]
[347860026,1736165442009,-500.0,0.00010871,2]
[347860027,1736165442018,-500.0,0.00010871,2]
[347860028,1736165442027,-500.0,0.00010871,2]
[347860029,1736165442037,-500.0,0.00010871,2]
[347860030,1736165442047,-500.0,0.00010871,2]
[347860031,1736165442056,-500.0,0.00010871,2]
[347860032,1736165442065,-500.0,0.00010871,2]
[347860033,1736165442075,-500.0,0.00010871,2]
[347860034,1736165442084,-500.0,0.00010871,2]
[347860035,1736165442093,-603.88981053,0.00010871,2]
[347860036,1736165442102,-749.06,0.00010871,2]
[347860037,1736165442112,-500.0,0.00010871,2]
[347860038,1736165442121,-656.2,0.00010871,2]
[347860039,1736165442130,-552.4,0.00010871,2]
[347860040,1736165442139,-547.42,0.00010871,2]
[347860041,1736165442148,-500.0,0.00010871,2]
[347860042,1736165442158,-500.0,0.00010871,2]
[347860043,1736165442167,-478.11,0.00010871,2]
[347860044,1736165442176,-500.0,0.00010871,2]
[347860045,1736165442187,-500.0,0.00010871,2]
[347860046,1736165442196,-500.0,0.00010871,2]
[347860047,1736165442206,-365.02,0.00010871,2]
[347860048,1736165442215,-500.0,0.00010871,2]
[347860049,1736165442224,-569.09,0.00010871,2]
[347860050,1736165442234,-352.56061788,0.00010871,2]
[347860051,1736165442243,-500.0,0.00010871,2]
[347860052,1736165442252,-790.8,0.00010871,2]
[347860053,1736165442262,-500.0,0.00010871,2]
[347860054,1736165442271,-500.0,0.00010871,2]
[347860055,1736165442280,-500.0,0.00010871,2]
[347860056,1736165442290,-500.0,0.00010871,2]
[347860057,1736165442299,-500.0,0.00010871,2]
[347860058,1736165442309,-500.0,0.00010871,2]
[347860059,1736165442318,-500.0,0.00010871,2]
[347860060,1736165442328,-502.9020632,0.00010871,2]
[347860061,1736165442337,-500.0,0.00010871,2]
[347860062,1736165442346,-500.0,0.00010871,2]
[347860063,1736165442355,-500.0,0.00010871,2]
[347860064,1736165442365,-500.0,0.00010871,2]
[347860065,1736165442374,-500.0,0.00010871,2]
[347860066,1736165442383,-500.0,0.00010871,2]
[347860067,1736165442392,-500.0,0.00010871,2]
[347860068,1736165442401,-500.0,0.00010871,2]
[347860069,1736165442411,-258.56,0.00010871,2]
[347860070,1736165442420,-622.00682174,0.00010871,2]
[347860071,1736165442434,-500.0,0.00010871,2]
[347860072,1736165442445,-500.0,0.00010871,2]
[347860073,1736165442454,-500.0,0.00010871,2]
[347860074,1736165442463,-500.0,0.00010871,2]
[347860075,1736165442472,-194.02354629,0.00010871,2]
[347860076,1736165442481,-500.0,0.00010871,2]
[347860077,1736165442491,-500.0,0.00010871,2]
[347860078,1736165442500,-500.0,0.00010871,2]
[347860079,1736165442510,-500.0,0.00010872,2]
[347860080,1736165442519,-380.26805748,0.00010872,2]
[347860081,1736165442528,-500.0,0.00010872,2]
[347860082,1736165442538,-510.38,0.00010872,2]
[347860083,1736165442547,-500.0,0.00010872,2]
[347860084,1736165442556,-445.4,0.00010872,2]
[347860085,1736165442565,-500.0,0.00010872,2]
[347860086,1736165442574,-500.0,0.00010872,2]
[347860087,1736165442583,-635.39,0.00010872,2]
[347860088,1736165442592,-500.0,0.00010872,2]
[347860089,1736165442602,-500.0,0.00010872,2]
[347860090,1736165442611,-546.76,0.00010872,2]
[347860091,1736165442620,-637.7,0.00010872,2]
[347860092,1736165442630,-1274.36,0.00010872,2]
[347860093,1736165442639,-500.0,0.00010872,2]
[347860094,1736165442648,-4502.66,0.00010872,2]
[347860095,1736165442657,-500.0,0.00010872,2]
[347860096,1736165442666,-4084.02,0.00010872,2]
[347860097,1736165442675,-500.0,0.00010872,2]
[347860098,1736165442685,-500.0,0.00010872,2]
[347860099,1736165442694,-500.0,0.00010872,2]
[347860100,1736165442705,-500.0,0.00010872,2]